bitfinex/quotes_BTCUSD_20251205
["timestamp","ask_amount","ask_price","bid_price","bid_amount"]
[1764956893736,0.0112036,89257.0,89254.0,0.02904397]
[1764956893937,0.323,89260.0,89257.0,0.0112036]
[1764956894148,0.323,89260.0,89256.0,0.2352762]
[1764956894354,0.01120423,89252.0,89247.0,0.01120485]
[1764956894570,0.01120435,89251.0,89246.0,0.01784]
[1764956894735,0.00161287,89251.0,89248.0,0.01120473]
[1764956894945,0.33534,89247.0,89243.0,0.01120536]
[1764956895149,0.01234,89244.0,89240.0,0.01120573]
[1764956895313,0.01234,89242.0,89241.0,0.01120561]
[1764956895712,0.01234,89242.0,89241.0,0.22411223]
[1764956896320,0.01234,89242.0,89241.0,0.22450844]
[1764956896536,0.02468,89242.0,89241.0,0.00039621]
[1764956896776,0.4307907,89242.0,89241.0,0.00039621]
[1764956896979,0.33534,89242.0,89241.0,0.00039621]
[1764956897183,0.323,89242.0,89241.0,0.00039621]
[1764956897385,0.57178972,89242.0,89241.0,0.00039621]
[1764956898089,0.59369371,89242.0,89241.0,0.00039621]
[1764956899571,0.57278972,89242.0,89241.0,0.00039621]
[1764956900549,0.68249478,89242.0,89241.0,0.00039621]
[1764956900747,0.70439877,89242.0,89241.0,0.00039621]
[1764956901268,2.70439877,89242.0,89241.0,0.00039621]
[1764956901467,0.22418717,89212.0,89207.0,0.01120988]
[1764956901659,0.22418717,89212.0,89193.0,0.02306]
[1764956901660,0.00655,89211.0,89196.0,0.01784]
[1764956901830,0.00655,89211.0,89209.0,0.22419177]
[1764956902024,0.00039547,89212.0,89209.0,0.22419177]
[1764956902270,0.00039547,89212.0,89211.0,0.2241876]
[1764956903944,0.00039547,89212.0,89211.0,0.2407376]
[1764956904199,0.00039547,89212.0,89211.0,0.2241876]
[1764956905179,0.24926082,89212.0,89205.0,0.01121013]
[1764956905397,0.24926082,89212.0,89195.0,0.01784]
[1764956905398,0.01234,89211.0,89197.0,0.01121113]
[1764956905597,0.01234,89211.0,89182.0,0.01121302]
[1764956905598,1.14777786,89211.0,89182.0,0.01121302]
[1764956905798,0.01121239,89187.0,89183.0,0.01121289]
[1764956905946,1.14777786,89211.0,89183.0,0.01121289]
[1764956905947,0.01121227,89188.0,89183.0,0.01121289]
[1764956906150,0.23545836,89188.0,89184.0,0.01121277]
[1764956906354,0.00539,89187.0,89185.0,0.01121264]
[1764956906713,0.01121264,89185.0,89182.0,0.2354722]
[1764956906910,0.01194,89182.0,89179.0,0.0112134]
[1764956907130,0.00700287,89187.0,89184.0,0.23546774]
[1764956907300,0.00700287,89187.0,89185.0,0.22425165]
[1764956907530,0.01660239,89187.0,89181.0,0.01121315]
[1764956907735,0.00539,89187.0,89184.0,0.23546751]
[1764956907867,0.00539,89187.0,89185.0,0.22425215]
[1764956908282,0.01660239,89187.0,89184.0,0.00011881]
[1764956908492,0.01194,89185.0,89184.0,0.00011881]
[1764956909057,0.00539,89193.0,89191.0,0.22423761]
[1764956909253,0.00539,89193.0,89186.0,0.01121252]
[1764956909254,0.33420963,89209.0,89201.0,0.01121063]
[1764956909455,0.01120963,89209.0,89206.0,0.22419915]
[1764956909606,0.01120963,89209.0,89204.0,0.01121025]
[1764956909607,0.01120975,89208.0,89205.0,0.01121013]
[1764956909981,0.01121088,89199.0,89195.0,0.01121139]
[1764956910186,0.323,89206.0,89186.0,0.01121252]
[1764956910187,0.33421201,89190.0,89186.0,0.01121252]
[1764956910337,0.323,89190.0,89188.0,0.22424491]
[1764956910864,0.323,89201.0,89199.0,0.23542797]
[1764956911062,0.323,89201.0,89198.0,0.01121101]
[1764956911063,0.33421063,89201.0,89198.0,0.22421931]
[1764956911367,0.01194,89199.0,89198.0,0.23543092]
[1764956911791,0.323,89201.0,89200.0,0.22421524]
[1764956911931,0.323,89201.0,89199.0,0.22421776]
[1764956911932,0.323,89202.0,89199.0,0.23542864]
[1764956912133,0.33421051,89202.0,89194.0,0.01121151]
[1764956912338,0.00539,89195.0,89189.0,0.01121214]
[1764956912585,0.00700287,89195.0,89192.0,0.01121176]
[1764956912787,0.00700287,89195.0,89194.0,0.22423032]
[1764956912991,0.323,89197.0,89196.0,0.2242253]
[1764956913148,0.23541556,89204.0,89200.0,0.22421442]
[1764956913351,0.001,89202.0,89201.0,0.22421221]
[1764956913592,0.001,89202.0,89201.0,0.24734221]
[1764956913751,0.01120862,89217.0,89213.0,0.23538992]
[1764956913958,0.01120862,89217.0,89213.0,0.01120912]
[1764956914176,0.54717849,89215.0,89212.0,0.22418283]
[1764956914413,0.33420912,89213.0,89208.0,0.01120975]
[1764956914620,0.23539433,89212.0,89201.0,0.22421212]
[1764956914818,0.23539433,89212.0,89204.0,0.01132906]
[1764956914819,0.01194,89205.0,89204.0,0.01132906]
[1764956915047,0.01194,89205.0,89204.0,0.23553425]
[1764956915252,0.00161287,89212.0,89208.0,0.01120975]
[1764956915449,0.01120837,89219.0,89210.0,0.0112095]
[1764956915652,0.01120749,89226.0,89220.0,0.01120824]
[1764956915854,0.01120963,89209.0,89205.0,0.01121013]
[1764956916058,0.0112085,89218.0,89214.0,0.22417929]
[1764956916329,0.33420875,89216.0,89213.0,0.23538919]
[1764956916530,0.36935922,89216.0,89212.0,0.01120925]
[1764956916733,0.0112095,89210.0,89207.0,0.25328647]
[1764956916961,0.011209,89214.0,89210.0,0.0112095]
[1764956916962,0.01194,89213.0,89210.0,0.0112095]
[1764956917199,0.323,89214.0,89213.0,0.22418257]
[1764956917806,0.323,89214.0,89211.0,0.23539488]
[1764956918004,0.323,89214.0,89211.0,0.01120938]
[1764956918233,0.22418323,89213.0,89210.0,0.23539939]
[1764956918685,0.00161287,89216.0,89214.0,0.22417888]
[1764956918887,0.00161287,89216.0,89215.0,0.22417754]
[1764956919270,0.001,89218.0,89217.0,0.22417252]
[1764956919863,0.33420824,89220.0,89217.0,0.23538114]
[1764956920062,0.33420824,89220.0,89211.0,0.01120938]
[1764956920063,0.22417485,89217.0,89212.0,0.01120925]
[1764956920267,0.0112085,89218.0,89215.0,0.22417725]
[1764956920469,0.323,89220.0,89215.0,0.2353839]
[1764956920694,0.323,89220.0,89218.0,0.22416955]
[1764956920916,0.323,89221.0,89219.0,0.22416618]
[1764956921069,0.323,89221.0,89217.0,0.01120862]
[1764956921070,0.33420812,89221.0,89217.0,0.01120862]
[1764956921285,0.01120912,89213.0,89206.0,0.01121]
[1764956921490,0.22418257,89213.0,89210.0,0.22418968]
[1764956921688,0.23540184,89210.0,89207.0,0.01784]
[1764956921986,0.22420267,89205.0,89204.0,0.00011881]
[1764956922619,0.24969554,89205.0,89204.0,0.00011881]
[1764956922768,0.57269554,89205.0,89204.0,0.00011881]
[1764956923317,0.56075554,89205.0,89204.0,0.00011881]
[1764956923884,0.33655287,89205.0,89204.0,0.00011881]
[1764956924109,0.33655287,89205.0,89204.0,0.224324]
[1764956924311,0.33655287,89205.0,89204.0,0.00011881]
[1764956924736,0.54881554,89205.0,89204.0,0.00011881]
[1764956926325,0.32461287,89205.0,89204.0,0.224324]
[1764956926725,0.56075554,89205.0,89204.0,0.00011881]
[1764956926965,0.57269554,89205.0,89204.0,0.00011881]
[1764956927551,0.69286997,89205.0,89204.0,0.00011881]
[1764956927750,0.71699206,89205.0,89204.0,0.00011881]
[1764956928772,0.607287,89205.0,89204.0,0.00011881]
[1764956928975,0.6050689,89205.0,89204.0,0.00011881]
[1764956929184,0.62919536,89205.0,89204.0,0.00011881]
[1764956929398,0.58341137,89205.0,89204.0,0.00011881]
[1764956929617,0.54881554,89205.0,89204.0,0.00011881]
[1764956929831,0.324,89205.0,89204.0,0.224324]
[1764956931232,0.323,89205.0,89204.0,0.224324]
[1764956931593,0.324,89205.0,89204.0,0.224324]
[1764956931996,0.323,89205.0,89204.0,0.224324]
[1764956933192,0.323,89205.0,89204.0,0.262794]
[1764956933395,0.02414379,89219.0,89217.0,0.22417209]
[1764956933606,0.22417459,89217.0,89214.0,0.22418001]
[1764956933814,0.01120799,89222.0,89214.0,0.22418001]
[1764956933815,0.55837635,89219.0,89215.0,0.23538589]
[1764956934021,0.55837635,89219.0,89207.0,0.23540259]
[1764956934022,0.22418742,89212.0,89207.0,0.23540259]
[1764956934281,0.01120925,89212.0,89209.0,0.01120963]
[1764956934489,0.01120925,89212.0,89210.0,0.22418995]
[1764956934671,0.23539629,89212.0,89209.0,0.23540141]
[1764956935291,0.23539381,89214.0,89209.0,0.01120963]
[1764956935476,0.01120938,89211.0,89208.0,0.01120975]
[1764956935694,0.011209,89214.0,89209.0,0.01120963]
[1764956935814,0.32461287,89219.0,89217.0,0.22417243]
[1764956936049,0.32461287,89219.0,89218.0,0.22417001]
[1764956936248,0.33509323,89219.0,89217.0,0.22417243]
[1764956936466,0.54878163,89219.0,89216.0,0.23538275]
[1764956937165,0.22418055,89214.0,89211.0,0.01120938]
[1764956937367,0.22418055,89214.0,89212.0,0.2241848]
[1764956937799,0.01120887,89215.0,89212.0,0.2241848]
[1764956938002,0.0112085,89218.0,89213.0,0.01120912]
[1764956938225,0.01282124,89219.0,89216.0,0.22417503]
[1764956938226,0.323,89217.0,89216.0,0.22417503]
[1764956938438,0.323,89227.0,89223.0,0.01120787]
[1764956938665,0.01048262,89226.0,89223.0,0.2353652]
[1764956938866,0.01048262,89226.0,89222.0,0.01120799]
[1764956938867,0.323,89225.0,89222.0,0.01120799]
[1764956939042,0.323,89225.0,89224.0,0.22415493]
[1764956939272,0.33348275,89225.0,89224.0,0.22415493]
[1764956939515,0.323,89225.0,89224.0,0.22415493]
[1764956939936,0.2241341,89233.0,89224.0,0.22415493]
[1764956939937,0.01482361,89241.0,89233.0,0.01120661]
[1764956940163,0.01482361,89241.0,89240.0,0.22411474]
[1764956940164,0.003618,89241.0,89240.0,0.22411474]
[1764956941019,0.015558,89241.0,89231.0,0.01120686]
[1764956941271,0.01120611,89237.0,89232.0,0.01120674]
[1764956941498,0.01120611,89237.0,89230.0,0.01784]
[1764956941499,0.22413232,89233.0,89230.0,0.01784]
[1764956941713,0.23535543,89227.0,89224.0,0.22415365]
[1764956941941,0.01194,89229.0,89226.0,0.01120749]
[1764956942145,0.23534973,89229.0,89226.0,0.23535653]
[1764956942347,0.323,89230.0,89229.0,0.22414237]
[1764956942987,0.00655,89231.0,89230.0,0.22413986]
[1764956943188,0.00161287,89233.0,89232.0,0.22413483]
[1764956943401,0.32701347,89241.0,89240.0,0.22411474]
[1764956943610,0.56233377,89241.0,89236.0,0.2353306]
[1764956943836,0.56233377,89241.0,89238.0,0.22411888]
[1764956944038,0.33821908,89241.0,89238.0,0.23532562]
[1764956944248,0.32701347,89241.0,89240.0,0.22411474]
[1764956944466,0.01120799,89222.0,89217.0,0.01120862]
[1764956944681,0.23536807,89222.0,89219.0,0.01120837]
[1764956944882,0.23536807,89222.0,89206.0,0.02242001]
[1764956944883,0.0177585,89218.0,89210.0,0.0112095]
[1764956945098,0.00655,89218.0,89215.0,0.01120887]
[1764956945305,0.23538277,89217.0,89214.0,0.011209]
[1764956945914,0.00655,89218.0,89215.0,0.23538637]
[1764956946120,0.00655,89218.0,89217.0,0.22417252]
[1764956947861,0.00655,89218.0,89217.0,0.003]
[1764956948063,0.00655,89218.0,89217.0,0.22717252]
[1764956948286,0.00655,89218.0,89217.0,0.003]
[1764956948488,0.00655,89218.0,89217.0,0.22717252]
[1764956948690,0.00655,89218.0,89217.0,0.003]
[1764956949035,0.00655,89218.0,89217.0,0.22717252]
[1764956949146,0.01849,89218.0,89217.0,0.22717252]
[1764956949403,0.01849,89218.0,89217.0,0.003]
[1764956949602,0.23072001,89218.0,89217.0,0.003]
[1764956950053,0.00655,89218.0,89217.0,0.22717252]
[1764956950296,0.00161287,89222.0,89221.0,0.22416247]
[1764956950518,0.22577455,89222.0,89218.0,0.23537696]
[1764956950653,0.33582086,89222.0,89218.0,0.0112085]
[1764956950858,0.32461287,89222.0,89219.0,0.01120837]
[1764956951249,0.23537926,89218.0,89212.0,0.01120925]
[1764956951656,0.23538235,89217.0,89214.0,0.22417833]
[1764956951885,0.22417554,89216.0,89214.0,0.22417833]
[1764956952078,0.22417554,89216.0,89210.0,0.0290495]
[1764956952079,0.01120912,89213.0,89210.0,0.01784]
[1764956952300,0.01120963,89209.0,89199.0,0.01121088]
[1764956952513,0.01120887,89215.0,89208.0,0.01120975]
[1764956952718,0.01120862,89217.0,89214.0,0.23538675]
[1764956952719,0.33420862,89217.0,89214.0,0.23538675]
[1764956952922,0.323,89214.0,89212.0,0.22418496]
[1764956953146,0.323,89214.0,89213.0,0.22418257]
[1764956953359,0.23535218,89228.0,89221.0,0.22416247]
[1764956953557,0.01120736,89227.0,89221.0,0.22416247]
[1764956954164,0.55835275,89228.0,89221.0,0.22416247]
[1764956954612,0.01120736,89227.0,89221.0,0.22416247]
[1764956954744,0.55835275,89228.0,89221.0,0.22416247]
[1764956955082,0.33420711,89229.0,89221.0,0.22416247]
[1764956955259,0.00261287,89222.0,89221.0,0.22416247]
[1764956956849,0.001,89222.0,89221.0,0.25316247]
[1764956957085,0.001,89222.0,89221.0,0.27577247]
[1764956957896,0.01120586,89239.0,89235.0,0.22412725]
[1764956958096,0.323,89238.0,89236.0,0.22412479]
[1764956958305,0.323,89238.0,89237.0,0.22412228]
[1764956958506,0.323,89238.0,89236.0,0.22412479]
[1764956958734,0.323,89238.0,89237.0,0.22412228]
[1764956959296,0.326618,89241.0,89238.0,0.23532412]
[1764956959501,0.56193796,89241.0,89238.0,0.23532412]
[1764956959704,0.22412316,89237.0,89235.0,0.01120636]
[1764956959903,0.23532574,89238.0,89235.0,0.23533266]
[1764956960308,0.323,89236.0,89235.0,0.23533266]
[1764956961024,0.01120686,89231.0,89222.0,0.01120799]
[1764956961233,0.01120686,89231.0,89214.0,0.02261]
[1764956961234,0.01120686,89231.0,89227.0,0.01120736]
[1764956961449,0.23534904,89230.0,89227.0,0.01120736]
[1764956961689,0.02314724,89228.0,89224.0,0.01784]
[1764956961879,0.33494,89228.0,89227.0,0.22414739]
[1764956962036,0.33494,89228.0,89225.0,0.01120762]
[1764956962037,0.33494,89228.0,89226.0,0.22414891]
[1764956962822,0.34614724,89228.0,89224.0,0.25320061]
[1764956963028,0.02314724,89228.0,89224.0,0.02904774]
[1764956963426,0.323,89226.0,89224.0,0.25320081]
[1764956963671,0.323,89226.0,89225.0,0.22415242]
[1764956964548,0.323,89226.0,89224.0,0.25320081]
[1764956964549,0.323,89226.0,89224.0,0.01784]
[1764956964735,0.54715242,89225.0,89224.0,0.01784]
[1764956965453,0.54715557,89224.0,89222.0,0.01120799]
[1764956965685,0.22418006,89214.0,89212.0,0.00011881]
[1764956965885,0.58102656,89213.0,89212.0,0.00011881]
[1764956966086,0.61713333,89213.0,89212.0,0.00011881]
[1764956966455,0.62761961,89213.0,89212.0,0.00011881]
[1764956966663,0.73732467,89213.0,89212.0,0.00011881]
[1764956967562,0.73832467,89213.0,89212.0,0.00011881]
[1764956967765,0.72782082,89213.0,89212.0,0.00011881]
[1764956968147,0.61811576,89213.0,89212.0,0.00011881]
[1764956968350,0.61405177,89213.0,89212.0,0.00011881]
[1764956968776,0.57206257,89213.0,89212.0,0.00011881]
[1764956971663,0.59619179,89213.0,89212.0,0.00011881]
[1764956973223,0.61809578,89213.0,89212.0,0.00011881]
[1764956973419,0.59396656,89213.0,89212.0,0.00011881]
[1764956973827,0.57206257,89213.0,89212.0,0.00011881]
[1764956974006,0.59396656,89213.0,89212.0,0.00011881]
[1764956974407,0.61809139,89213.0,89212.0,0.00011881]
[1764956976616,0.61809139,89213.0,89171.0,0.02298]
[1764956976617,1.38178682,89213.0,89176.0,0.01121377]
[1764956976822,0.01121377,89176.0,89171.0,0.0112144]
[1764956977013,0.00597,89173.0,89172.0,0.23915617]
[1764956978655,0.323,89180.0,89179.0,0.22426804]
[1764956978789,0.323,89180.0,89179.0,0.23939804]
[1764956979173,0.04489244,89198.0,89195.0,0.23543724]
[1764956979350,0.323,89198.0,89193.0,0.23544205]
[1764956979595,0.558432,89198.0,89195.0,0.01121139]
[1764956979777,0.323,89198.0,89196.0,0.22422529]
[1764956979983,0.23538937,89214.0,89203.0,0.01121038]
[1764956980218,0.03367398,89216.0,89214.0,0.22418006]
[1764956980367,0.23537588,89219.0,89216.0,0.2353814]
[1764956980568,0.00597,89222.0,89216.0,0.01120875]
[1764956980748,0.00597,89222.0,89221.0,0.22416247]
[1764956980950,0.33420736,89227.0,89222.0,0.01120799]
[1764956981157,0.323,89223.0,89221.0,0.01120812]
[1764956981395,0.22415493,89224.0,89221.0,0.01120812]
[1764956981607,0.23536081,89225.0,89222.0,0.23536551]
[1764956981799,0.00011857,89227.0,89226.0,0.22414991]
[1764956982762,0.01205857,89227.0,89221.0,0.01120812]
[1764956983000,0.00011857,89227.0,89225.0,0.22415215]
[1764956983197,0.00011857,89227.0,89225.0,0.22360277]
[1764956985368,0.00011857,89227.0,89226.0,0.23927991]
[1764956985504,0.00011857,89227.0,89226.0,0.26225991]
[1764956986002,0.00011857,89227.0,89226.0,0.28418164]
[1764956986552,0.00011857,89227.0,89226.0,0.26225991]
[1764956986904,0.00011857,89227.0,89226.0,0.23927991]
[1764956987143,0.00011857,89227.0,89226.0,0.25711991]
[1764956987346,0.00011857,89227.0,89226.0,0.24198991]
[1764956987847,0.00011857,89227.0,89226.0,0.02084]
[1764956988075,0.00011857,89227.0,89226.0,0.003]
[1764956988226,0.23537021,89222.0,89219.0,0.01120837]
[1764956988394,0.01120787,89223.0,89219.0,0.01120837]
[1764956988594,0.54715318,89225.0,89221.0,0.22416052]
[1764956988795,0.323,89225.0,89222.0,0.23536645]
[1764956989041,0.323,89225.0,89223.0,0.22415542]
[1764956989350,0.00011857,89227.0,89225.0,0.22415242]
[1764956989577,0.00011857,89227.0,89226.0,0.01637]
[1764956989900,0.00011857,89227.0,89226.0,0.03905]
[1764956990102,0.00011857,89227.0,89225.0,0.22415242]
[1764956990347,0.22416498,89220.0,89219.0,0.003]
[1764956990565,0.323,89220.0,89219.0,0.003]
[1764956990724,0.55837586,89219.0,89216.0,0.2353833]
[1764956990946,0.323,89219.0,89217.0,0.22417188]
[1764956991415,0.323,89219.0,89216.0,0.2353833]
[1764956991621,0.01120862,89217.0,89213.0,0.23539136]
[1764956991825,0.2353847,89216.0,89212.0,0.23539386]
[1764956992248,0.2353847,89216.0,89210.0,0.0229395]
[1764956992249,0.01120887,89215.0,89210.0,0.0229395]
[1764956992429,0.011209,89214.0,89211.0,0.02904938]
[1764956992608,0.01120887,89215.0,89213.0,0.22418233]
[1764956992770,0.01120862,89217.0,89214.0,0.22417961]
[1764956992976,0.54716727,89220.0,89216.0,0.01120875]
[1764956993171,0.22416809,89219.0,89216.0,0.01120875]
[1764956993373,0.323,89220.0,89218.0,0.22417001]
[1764956993595,0.323,89220.0,89219.0,0.01637]
[1764956993863,0.323,89220.0,89219.0,0.03905]
[1764956994053,0.00011857,89227.0,89224.0,0.01120774]
[1764956994280,0.00011857,89227.0,89226.0,0.23656991]
[1764956994481,0.00011857,89227.0,89226.0,0.25293991]
[1764956995243,0.00011857,89227.0,89226.0,0.27561991]
[1764956996454,0.00011857,89227.0,89226.0,0.29754164]
[1764956996617,0.00011857,89227.0,89226.0,0.27561991]
[1764956997125,0.00011857,89227.0,89226.0,0.29754164]
[1764956997323,0.00011857,89227.0,89226.0,0.36006463]
[1764956998020,0.00011857,89227.0,89226.0,0.27561991]
[1764956998228,0.00011857,89227.0,89226.0,0.27861991]
[1764956998670,0.00011857,89227.0,89226.0,0.30054164]
[1764956998851,0.00011857,89227.0,89226.0,0.29754164]
[1764956999872,0.00011857,89227.0,89226.0,0.27561991]
[1764957000233,0.00011857,89227.0,89226.0,0.27961991]
[1764957000537,0.00011857,89227.0,89226.0,0.24056991]
[1764957000741,0.00011857,89227.0,89226.0,0.02184]
[1764957000944,0.01205857,89227.0,89226.0,0.02184]
[1764957001151,0.33420774,89224.0,89220.0,0.22416371]
[1764957001352,0.323,89226.0,89225.0,0.22415242]
[1764957001679,0.00173144,89227.0,89225.0,0.22415242]
[1764957001680,0.00011857,89227.0,89226.0,0.22414991]
[1764957002364,0.00011857,89227.0,89226.0,0.28103991]
[1764957002565,0.00011857,89227.0,89226.0,0.30296164]
[1764957002944,0.00011857,89227.0,89226.0,0.36548463]
[1764957003856,0.00011857,89227.0,89226.0,0.3435629]
[1764957004057,0.00011857,89227.0,89226.0,0.36548463]
[1764957004257,0.00011857,89227.0,89226.0,0.36948463]
[1764957005135,0.00011857,89227.0,89226.0,0.26719991]
[1764957005337,0.00011857,89227.0,89226.0,0.22814991]
[1764957005540,0.03508139,89227.0,89226.0,0.22814991]
[1764957005896,0.59578165,89227.0,89226.0,0.004]
[1764957006299,0.32473144,89227.0,89226.0,0.004]
[1764957006428,0.00173144,89227.0,89226.0,0.22814991]
[1764957007087,0.00011857,89227.0,89226.0,0.26631991]
[1764957007620,0.00011857,89227.0,89226.0,0.26231991]
[1764957007968,0.00011857,89227.0,89226.0,0.26531991]
[1764957008395,0.00011857,89227.0,89226.0,0.26231991]
[1764957008900,0.00011857,89227.0,89226.0,0.26631991]
[1764957009371,0.00011857,89227.0,89226.0,0.28824164]
[1764957010010,0.00011857,89227.0,89226.0,0.43704164]
[1764957010417,0.00011857,89227.0,89226.0,0.41511991]
[1764957011042,0.00011857,89227.0,89226.0,0.40999991]
[1764957011391,0.00011857,89227.0,89226.0,0.37294991]
[1764957011521,0.00011857,89227.0,89226.0,0.37594991]
[1764957012126,0.00011857,89227.0,89226.0,0.37294991]
[1764957012513,0.00011857,89227.0,89223.0,0.23536367]
[1764957012514,0.02326593,89227.0,89223.0,0.23536367]
[1764957012714,0.2241655,89220.0,89216.0,0.01120875]
[1764957012866,0.01120875,89216.0,89213.0,0.01120912]
[1764957013072,0.33494,89215.0,89214.0,0.22417954]
[1764957013473,0.323,89215.0,89214.0,0.22417954]
[1764957014115,0.00161287,89216.0,89215.0,0.22417754]
[1764957014472,0.00011857,89227.0,89226.0,0.22414991]
[1764957014658,0.00011857,89227.0,89226.0,0.25719991]
[1764957015232,0.00011857,89227.0,89226.0,0.28015991]
[1764957015634,0.00011857,89227.0,89226.0,0.30208164]
[1764957017263,0.00011857,89227.0,89226.0,0.28424164]
[1764957017509,0.00011857,89227.0,89226.0,0.30208164]
[1764957018056,0.00011857,89227.0,89226.0,0.45488164]
[1764957018466,0.003618,89241.0,89240.0,0.24603647]
[1764957018666,0.00401396,89241.0,89240.0,0.25716474]
[1764957018870,0.00401396,89241.0,89240.0,0.30204647]
[1764957019267,0.00401396,89241.0,89240.0,0.28420647]
[1764957019473,0.00401396,89241.0,89240.0,0.30204647]
[1764957019746,0.00401396,89241.0,89240.0,0.32449732]
[1764957019972,0.00024257,89281.0,89279.0,0.22401684]
[1764957020181,0.00036133,89281.0,89279.0,0.22401684]
[1764957020470,0.00036133,89281.0,89280.0,0.01521]
[1764957020679,0.00036133,89281.0,89280.0,0.03817]
[1764957020890,0.00036133,89281.0,89279.0,0.22401684]
[1764957021091,0.00036133,89281.0,89280.0,0.01784]
[1764957021329,0.0019742,89281.0,89279.0,0.22401684]
[1764957021537,0.0019742,89281.0,89279.0,0.22401612]
[1764957021938,0.0029742,89281.0,89279.0,0.22401612]
[1764957022270,0.0019742,89281.0,89279.0,0.22401612]
[1764957022678,0.0019742,89281.0,89278.0,0.23521775]
[1764957022900,0.0019742,89281.0,89279.0,0.22401587]
[1764957023106,0.22401987,89278.0,89276.0,0.01784]
[1764957023347,0.22401987,89278.0,89269.0,0.01120209]
[1764957023348,0.01120159,89273.0,89270.0,0.01120197]
[1764957023698,0.03669396,89277.0,89255.0,0.01120385]
[1764957023699,0.323,89258.0,89255.0,0.01120385]
[1764957023832,0.323,89258.0,89243.0,0.02296]
[1764957023833,0.0112041,89253.0,89249.0,0.23529535]
[1764957024043,0.00597,89256.0,89252.0,0.2352881]
[1764957024044,0.01120385,89255.0,89252.0,0.2352881]
[1764957024242,0.01717372,89256.0,89252.0,0.23528842]
[1764957024441,0.00597,89256.0,89253.0,0.0112041]
[1764957024661,0.01194,89253.0,89251.0,0.23528944]
[1764957024856,0.01194,89253.0,89250.0,0.01120448]
[1764957024857,0.01194,89252.0,89250.0,0.2352927]
[1764957025274,0.00161287,89253.0,89252.0,0.22408461]
[1764957025547,0.00161287,89253.0,89251.0,0.2240854]
[1764957028625,0.01194,89252.0,89251.0,0.2240854]
[1764957029360,0.00161287,89253.0,89251.0,0.2240854]
[1764957029737,0.323,89248.0,89246.0,0.02904498]
[1764957029967,0.323,89248.0,89243.0,0.01120536]
[1764957029968,0.323,89245.0,89243.0,0.01120536]
[1764957030175,0.01194,89244.0,89243.0,0.23531257]
[1764957030404,0.323,89249.0,89248.0,0.22409465]
[1764957031367,0.00597,89256.0,89252.0,0.22408461]
[1764957032188,0.323,89261.0,89260.0,0.22406453]
[1764957032388,0.32311872,89261.0,89259.0,0.2240669]
[1764957032567,0.00011872,89261.0,89259.0,0.2240669]
[1764957032809,0.00011872,89261.0,89258.0,0.23527103]
[1764957033013,0.32311872,89261.0,89259.0,0.22406684]
[1764957033450,0.32311872,89261.0,89258.0,0.23527103]
[1764957033659,0.01194,89260.0,89258.0,0.23527103]
[1764957033842,0.323,89257.0,89254.0,0.01120397]
[1764957034065,0.01194,89255.0,89252.0,0.23528843]
[1764957034272,0.22407959,89254.0,89251.0,0.01784]
[1764957034484,0.323,89251.0,89249.0,0.23529662]
[1764957034704,0.01120473,89248.0,89241.0,0.01120561]
[1764957034912,0.323,89243.0,89237.0,0.01120611]
[1764957035119,0.22411304,89241.0,89239.0,0.01784]
[1764957035303,0.323,89240.0,89239.0,0.01784]
[1764957035760,0.55905474,89240.0,89239.0,0.01784]
[1764957035978,0.323,89240.0,89239.0,0.24195725]
[1764957036188,0.323,89240.0,89239.0,0.01784]
[1764957036395,0.01120548,89242.0,89239.0,0.01784]
[1764957036543,0.323,89240.0,89239.0,0.01784]
[1764957037164,0.323,89240.0,89239.0,0.24195725]
[1764957037539,0.323,89240.0,89233.0,0.1488]
[1764957037540,0.54712981,89234.0,89233.0,0.1488]
[1764957037740,0.55906981,89234.0,89233.0,0.1488]
[1764957037966,0.55906981,89234.0,89211.0,0.01120938]
[1764957037967,0.01120862,89217.0,89211.0,0.01120938]
[1764957038165,0.011209,89214.0,89210.0,0.0112095]
[1764957038335,0.323,89218.0,89205.0,0.02998]
[1764957038547,0.323,89221.0,89218.0,0.0112085]
[1764957038729,0.323,89221.0,89219.0,0.22416679]
[1764957039581,0.323,89221.0,89218.0,0.23577162]
[1764957039582,0.00597,89233.0,89231.0,0.22413735]
[1764957041931,0.22415028,89226.0,89224.0,0.01120774]
[1764957042118,0.01120724,89228.0,89225.0,0.01784]
[1764957042526,0.01120699,89230.0,89228.0,0.22414457]
[1764957042724,0.01120699,89230.0,89226.0,0.22414991]
[1764957042931,0.54713762,89231.0,89228.0,0.22414474]
[1764957043131,0.54713762,89231.0,89228.0,0.23535198]
[1764957043132,0.323,89231.0,89228.0,0.23535198]
[1764957043564,0.01194,89229.0,89226.0,0.23535699]
[1764957043776,0.01194,89228.0,89226.0,0.23535699]
[1764957044009,0.323,89226.0,89224.0,0.22415493]
[1764957044212,0.01194,89225.0,89223.0,0.23536323]
[1764957044415,0.323,89226.0,89225.0,0.22415242]
[1764957044978,0.323,89229.0,89225.0,0.23536004]
[1764957045203,0.33420711,89229.0,89226.0,0.01120749]
[1764957045602,0.01194,89227.0,89223.0,0.23536431]
[1764957045807,0.01194,89226.0,89224.0,0.22415403]
[1764957046122,0.01194,89226.0,89225.0,0.22415242]
[1764957046749,0.323,89227.0,89226.0,0.22414991]
[1764957047173,0.00597,89233.0,89231.0,0.22413735]
[1764957047385,0.00597,89233.0,89232.0,0.22413483]
[1764957047620,0.323,89236.0,89235.0,0.2241273]
[1764957047814,0.323,89236.0,89235.0,0.2362073]
[1764957048481,0.00597,89239.0,89235.0,0.2362073]
[1764957048482,0.00597,89239.0,89238.0,0.22411976]
[1764957048693,0.323,89245.0,89242.0,0.22410972]
[1764957049522,0.323,89245.0,89241.0,0.22411174]
[1764957049523,0.22410425,89245.0,89241.0,0.22411174]
[1764957049734,0.32461287,89243.0,89241.0,0.22411174]
[1764957050146,0.32461287,89243.0,89242.0,0.22410972]
[1764957050775,0.00161287,89243.0,89242.0,0.22410972]
[1764957053878,0.54706993,89258.0,89255.0,0.01120385]
[1764957054084,0.323,89258.0,89257.0,0.22407206]
[1764957054500,0.323,89258.0,89256.0,0.22407397]
[1764957054722,0.0231436,89257.0,89223.0,0.44831339]
[1764957054932,0.323,89252.0,89250.0,0.23529272]
[1764957055149,0.323,89252.0,89250.0,0.01120448]
[1764957055424,0.01120485,89247.0,89242.0,0.02904548]
[1764957055621,0.323,89247.0,89246.0,0.22409967]
[1764957056670,0.323,89248.0,89246.0,0.22409967]
[1764957056878,0.55829977,89248.0,89244.0,0.01120523]
[1764957057082,0.55829977,89248.0,89245.0,0.0112051]
[1764957057501,0.323,89248.0,89247.0,0.22409716]
[1764957057706,0.0128171,89252.0,89249.0,0.0112046]
[1764957057912,0.323,89250.0,89249.0,0.23529655]